fUSD/lending_fUSD_20241011
["ID","MTS","AMOUNT","RATE_DAILY","PERIOD"]
[340133751,1728669045577,-1705.30476512,0.00027,7]
[340133752,1728669045586,-150.0,0.00027,120]
[340133753,1728669045595,-1000.0,0.00027,2]
[340133754,1728669045604,-2000.0,0.00027,120]
[340133755,1728669045613,-276.481158,0.00027,120]
[340133756,1728669045622,-3863.379777,0.00027,2]
[340133757,1728669045631,-195.913125,0.00027,120]
[340133758,1728669045640,-150.0,0.0002711,4]
[340133759,1728669045649,-500.66,0.00027133,2]
[340133760,1728669045658,-500.0,0.00027144,7]
[340133761,1728669045667,-224.73536651,0.00027144,7]
[340133762,1728669045676,-150.0,0.00027156,4]
[340133763,1728669045685,-165.8551946,0.00027193,2]
[340133764,1728669045695,-9432.28310568,0.00027291,2]
[340133765,1728669045711,-9432.28310567,0.00027291,2]
[340133766,1728669045720,-9432.28310567,0.00027291,2]
[340133767,1728669045729,-150.0,0.00027314,4]
[340133769,1728669045738,-1002.5,0.0002734,2]
[340133770,1728669045747,-203.67917712,0.0002736,120]
[340133771,1728669045757,-3271.62,0.00027397,2]
[340133772,1728669045766,-163.035656,0.00027397,2]
[340133773,1728669045775,-175.722136,0.00027397,2]
[340133774,1728669045784,-422.39189064,0.00027397,2]
[340133775,1728669045793,-500.0,0.00027397,2]
[340133776,1728669045802,-500.0,0.00027397,2]
[340133777,1728669045811,-500.0,0.00027397,2]
[340133778,1728669045820,-500.0,0.00027397,2]
[340133779,1728669045829,-500.0,0.00027397,2]
[340133780,1728669045838,-500.0,0.00027397,2]
[340133781,1728669045847,-623.48,0.00027397,2]
[340133783,1728669045856,-203.24134197,0.00027397,2]
[340133785,1728669045865,-500.0,0.00027397,2]
[340133786,1728669045874,-500.0,0.00027397,30]
[340133787,1728669045883,-502.04811579,0.00027397,2]
[340133788,1728669045892,-500.0,0.00027397,2]
[340133789,1728669045902,-500.0,0.00027397,2]
[340133790,1728669045911,-1044.31,0.00027397,2]
[340133791,1728669045920,-500.0,0.00027397,2]
[340133793,1728669045929,-608.64,0.00027397,2]
[340133794,1728669045939,-500.0,0.00027397,2]
[340133795,1728669045949,-601.10049558,0.00027397,2]
[340133796,1728669045959,-500.0,0.00027397,2]
[340133798,1728669045972,-500.0,0.00027397,2]
[340133799,1728669045981,-500.0,0.00027397,2]
[340133801,1728669045991,-500.0,0.00027397,2]
[340133803,1728669046001,-542.26,0.00027397,2]
[340133804,1728669046011,-151.0,0.00027397,7]
[340133805,1728669046022,-500.0,0.00027397,2]
[340133807,1728669046033,-623.2,0.00027397,2]
[340133809,1728669046043,-500.0,0.00027397,2]
[340133810,1728669046051,-500.0,0.00027397,2]
[340133811,1728669046060,-638.45,0.00027397,2]
[340133812,1728669046069,-546.02061779,0.00027397,2]
[340133813,1728669046079,-500.0,0.00027397,2]
[340133814,1728669046088,-612.88,0.00027397,2]
[340133815,1728669046097,-833.24,0.00027397,2]
[340133816,1728669046106,-500.0,0.00027397,2]
[340133817,1728669046115,-592.48261917,0.00027397,2]
[340133818,1728669046124,-530.54717553,0.00027397,2]
[340133819,1728669046134,-518.48009848,0.00027397,2]
[340133820,1728669046143,-750.0,0.00027397,2]
[340133821,1728669046153,-530.53018874,0.00027397,2]
[340133822,1728669046163,-637.75426798,0.00027397,2]
[340133823,1728669046173,-500.70686533,0.00027397,2]
[340133824,1728669046182,-513.9028154,0.00027397,2]
[340133825,1728669046191,-500.0,0.00027397,2]
[340133826,1728669046200,-504.99996712,0.00027397,2]
[340133827,1728669046210,-543.91369561,0.00027397,2]
[340133828,1728669046220,-500.0,0.00027397,2]
[340133829,1728669046230,-500.0,0.00027397,2]
[340133830,1728669046239,-341.37427037,0.00027397,2]
[340133831,1728669046250,-500.0,0.00027397,2]
[340133832,1728669046259,-552.81278604,0.00027397,2]
[340133833,1728669046269,-524.40840857,0.00027397,2]
[340133834,1728669046278,-500.0,0.00027397,2]
[340133835,1728669046287,-500.0,0.00027397,2]
[340133836,1728669046296,-782.03,0.00027397,2]
[340133837,1728669046306,-500.0,0.00027397,2]
[340133838,1728669046315,-20000.0,0.00027397,2]
[340133839,1728669046326,-163.09183343,0.00027397,2]
[340133840,1728669046337,-198.65654757,0.00027397,2]
[340133841,1728669046347,-1198.37,0.00027397,2]
[340133842,1728669046359,-570.01460474,0.00027397,2]
[340133843,1728669046368,-500.0,0.00027397,2]
[340133844,1728669046377,-500.0,0.00027397,2]
[340133845,1728669046387,-500.0,0.00027397,2]
[340133846,1728669046396,-500.0,0.00027397,2]
[340133847,1728669046405,-500.0,0.00027397,2]
[340133848,1728669046414,-500.0,0.00027397,2]
[340133849,1728669046424,-500.0,0.00027397,2]
[340133850,1728669046435,-180.759435,0.00027397,7]
[340133851,1728669046446,-163.99975601,0.00027397,2]
[340133852,1728669046456,-500.0,0.00027397,2]
[340133853,1728669046466,-151.0,0.00027397,7]
[340133854,1728669046477,-180.759435,0.00027397,7]
[340133855,1728669046486,-500.0,0.00027397,2]
[340133857,1728669046495,-527.91363929,0.00027397,2]
[340133858,1728669046505,-576.59367036,0.00027397,2]
[340133860,1728669046514,-500.0,0.00027397,2]
[340133862,1728669046522,-523.89646887,0.00027397,2]
[340133864,1728669046532,-500.0,0.00027397,2]
[340133866,1728669046542,-517.50896508,0.00027397,2]
[340133868,1728669046552,-151.0,0.00027397,7]
[340133870,1728669046563,-500.0,0.00027397,2]
[340133872,1728669046574,-514.50602642,0.00027397,2]
[340133873,1728669046583,-529.28927851,0.00027397,2]
[340133875,1728669046592,-541.0016919,0.00027397,2]
[340133877,1728669046601,-1601.6,0.00027397,2]
[340133879,1728669046611,-586.57579185,0.00027397,2]
[340133881,1728669046619,-544.38602667,0.00027397,2]
[340133883,1728669046630,-500.0,0.00027397,2]
[340133885,1728669046639,-1185.2,0.00027397,2]
[340133887,1728669046648,-500.0,0.00027397,2]
[340133889,1728669046659,-689.79,0.00027397,2]
[340133890,1728669046670,-536.69891228,0.00027397,2]
[340133891,1728669046792,-545.09,0.00027397,2]
[340133892,1728669046817,-151.0,0.00027397,7]
[340133893,1728669046826,-531.47529936,0.00027397,2]
[340133894,1728669046835,-223.13,0.00027397,2]
[340133895,1728669046844,-500.0,0.00027397,2]
[340133896,1728669046854,-2408.32,0.00027397,2]
[340133897,1728669046863,-569.37135497,0.00027397,2]
[340133898,1728669046872,-545.63707848,0.00027397,2]
[340133899,1728669046882,-500.0,0.00027397,2]
[340133900,1728669046891,-184.62681262,0.00027397,2]
[340133901,1728669046900,-160.95127404,0.00027397,2]
[340133902,1728669046909,-500.0,0.00027397,2]
[340133903,1728669046918,-500.0,0.00027397,2]
[340133904,1728669046927,-900.34,0.00027397,2]
[340133905,1728669046936,-638.6369948,0.00027397,2]
[340133906,1728669046945,-1346.47,0.00027397,7]
[340133907,1728669046954,-601.30975198,0.00027397,2]
[340133908,1728669046964,-528.16064713,0.00027397,2]
[340133909,1728669046974,-500.0,0.00027397,2]
[340133910,1728669046983,-452.95078834,0.00027397,2]
[340133911,1728669046992,-500.0,0.00027397,2]
[340133912,1728669047002,-638.56,0.00027397,2]
[340133913,1728669047011,-176.57720746,0.00027397,2]
[340133914,1728669047020,-155.816356,0.00027397,7]
[340133915,1728669047029,-1086.29,0.00027397,2]
[340133916,1728669047038,-1644.73,0.00027397,2]
[340133917,1728669047047,-518.17,0.00027397,2]
[340133918,1728669047056,-155.816356,0.00027397,7]
[340133919,1728669047066,-534.28927371,0.00027397,2]
[340133920,1728669047075,-616.06,0.00027397,2]
[340133921,1728669047085,-155.28234084,0.00027397,2]
[340133922,1728669047095,-500.0,0.00027397,2]
[340133923,1728669047104,-500.0,0.00027397,2]
[340133924,1728669047113,-500.0,0.00027397,2]
[340133925,1728669047122,-547.92650555,0.00027397,2]
[340133926,1728669047131,-929.21,0.00027397,2]
[340133927,1728669047140,-500.0,0.00027397,2]
[340133928,1728669047149,-257.43986691,0.00027397,2]
[340133929,1728669047157,-500.0,0.00027397,2]
[340133930,1728669047165,-500.0,0.00027397,2]
[340133931,1728669047175,-529.35952461,0.00027397,2]
[340133932,1728669047183,-295.480051,0.00027397,7]
[340133933,1728669047193,-295.480051,0.00027397,7]
[340133934,1728669047202,-541.79502891,0.00027397,2]
[340133935,1728669047211,-531.42195945,0.00027397,2]
[340133936,1728669047220,-500.0,0.00027397,2]
[340133937,1728669047230,-532.46985473,0.00027397,2]
[340133938,1728669047239,-500.0,0.00027397,2]
[340133939,1728669047248,-860.5,0.00027397,2]
[340133940,1728669047257,-500.0,0.00027397,2]
[340133941,1728669047266,-478.17949383,0.00027397,2]
[340133942,1728669047275,-1559.13,0.00027397,2]
[340133943,1728669047285,-155.04172161,0.00027397,2]
[340133944,1728669047294,-500.0,0.00027397,2]
[340133945,1728669047303,-500.0,0.00027397,2]
[340133946,1728669047312,-500.0,0.00027397,2]
[340133947,1728669047322,-500.0,0.00027397,2]
[340133948,1728669047331,-736.29,0.00027397,2]
[340133949,1728669047340,-500.0,0.00027397,2]
[340133950,1728669047349,-576.26184806,0.00027397,2]
[340133951,1728669047358,-506.19767273,0.00027397,2]
[340133952,1728669047368,-500.0,0.00027397,2]
[340133953,1728669047377,-540.89449988,0.00027397,2]
[340133954,1728669047386,-655.69,0.00027397,2]
[340133955,1728669047396,-500.0,0.00027397,2]
[340133956,1728669047406,-513.7060932,0.00027397,2]
[340133957,1728669047415,-500.0,0.00027397,2]
[340133958,1728669047425,-545.59672441,0.00027397,2]
[340133959,1728669047434,-527.00175341,0.00027397,2]
[340133960,1728669047443,-500.0,0.00027397,2]
[340133961,1728669047452,-512.70852726,0.00027397,2]
[340133962,1728669047462,-500.0,0.00027397,2]
[340133963,1728669047471,-522.50612924,0.00027397,2]
[340133964,1728669047480,-500.0,0.00027397,2]
[340133965,1728669047489,-499.2994,0.00027397,7]
[340133966,1728669047498,-956.59,0.00027397,2]
[340133967,1728669047507,-195.36638877,0.00027397,2]
[340133968,1728669047516,-543.88341804,0.00027397,2]
[340133969,1728669047525,-500.0,0.00027397,2]
[340133970,1728669047534,-499.2994,0.00027397,7]
[340133971,1728669047543,-500.0,0.00027397,2]
[340133972,1728669047552,-2475.83,0.00027397,2]
[340133973,1728669047561,-554.62,0.00027397,2]
[340133974,1728669047571,-500.0,0.00027397,2]
[340133975,1728669047580,-500.0,0.00027397,2]
[340133976,1728669047589,-921.55,0.00027397,2]
[340133977,1728669047598,-519.51704712,0.00027397,2]
[340133978,1728669047607,-500.0,0.00027397,2]
[340133979,1728669047616,-500.0,0.00027397,2]
[340133980,1728669047625,-500.0,0.00027397,2]
[340133981,1728669047634,-595.70304919,0.00027397,2]
[340133982,1728669047643,-500.0,0.00027397,2]
[340133983,1728669047652,-458.555401,0.00027397,7]
[340133984,1728669047661,-545.3016421,0.00027397,2]
[340133985,1728669047669,-500.0,0.00027397,2]
[340133986,1728669047678,-458.555401,0.00027397,7]
[340133987,1728669047687,-203.38207406,0.00027397,2]
[340133988,1728669047698,-661.98,0.00027397,2]
[340133989,1728669047707,-500.0,0.00027397,2]
[340133990,1728669047718,-774.31,0.00027397,2]
[340133991,1728669047728,-500.0,0.00027397,2]
[340133992,1728669047737,-500.0,0.00027397,2]
[340133993,1728669047748,-500.0,0.00027397,2]
[340133994,1728669047758,-545.6309938,0.00027397,2]
[340133995,1728669047769,-652.46,0.00027397,2]
[340133996,1728669047778,-500.0,0.00027397,2]
[340133997,1728669047787,-179.46923659,0.00027397,2]
[340133998,1728669047796,-500.0,0.00027397,2]
[340133999,1728669047805,-2496.26,0.00027397,2]
[340134000,1728669047815,-500.0,0.00027397,2]
[340134001,1728669047823,-500.0,0.00027397,2]
[340134002,1728669047833,-500.0,0.00027397,2]
[340134003,1728669047842,-405.1122069,0.00027397,2]
[340134004,1728669047851,-495.70829697,0.00027397,2]
[340134005,1728669047860,-517.84829995,0.00027397,2]
[340134006,1728669047869,-500.0,0.00027397,2]
[340134007,1728669047879,-500.0,0.00027397,2]
[340134008,1728669047888,-14424.26,0.00027397,2]
[340134009,1728669047897,-500.0,0.00027397,2]
[340134010,1728669047910,-500.0,0.00027397,2]
[340134011,1728669047919,-638.64945774,0.00027397,2]
[340134012,1728669047928,-1022.42,0.00027397,2]
[340134013,1728669047937,-160.54075611,0.00027397,2]
[340134014,1728669047947,-500.0,0.00027397,2]
[340134015,1728669047956,-500.0,0.00027397,2]
[340134016,1728669047971,-530.79746729,0.00027397,2]
[340134017,1728669047980,-572.85473696,0.00027397,2]
[340134018,1728669047989,-500.0,0.00027397,2]
[340134019,1728669047999,-500.0,0.00027397,2]
[340134020,1728669048009,-500.0,0.00027397,2]
[340134021,1728669048018,-500.0,0.00027397,2]
[340134022,1728669048028,-573.42,0.00027397,2]
[340134023,1728669048037,-500.0,0.00027397,2]
[340134024,1728669048047,-1278.84,0.00027397,2]
[340134025,1728669048056,-1628.92,0.00027397,2]
[340134026,1728669048065,-500.0,0.00027397,2]
[340134027,1728669048074,-500.0,0.00027397,2]
[340134028,1728669048083,-500.0,0.00027397,2]
[340134029,1728669048092,-500.0,0.00027397,2]
[340134030,1728669048102,-391.67438483,0.00027397,2]
[340134031,1728669048110,-500.0,0.00027397,2]
[340134032,1728669048120,-500.0,0.00027397,2]
[340134033,1728669048129,-500.0,0.00027397,2]
[340134034,1728669048138,-3741.28,0.00027397,2]
[340134035,1728669048147,-151.0,0.00027397,7]
[340134036,1728669048156,-500.0,0.00027397,2]
[340134037,1728669048165,-634.54,0.00027397,2]
[340134038,1728669048174,-3669.49,0.00027397,2]
[340134039,1728669048184,-151.0,0.00027397,7]
[340134040,1728669048193,-532.37662769,0.00027397,2]
[340134041,1728669048202,-500.0,0.00027397,2]
[340134042,1728669048211,-500.0,0.00027397,2]
[340134043,1728669048221,-260.84628245,0.00027397,2]
[340134044,1728669048230,-698.69,0.00027397,2]
[340134045,1728669048239,-500.0,0.00027397,2]
[340134046,1728669048248,-507.59263919,0.00027397,2]
[340134047,1728669048257,-500.0,0.00027397,2]
[340134048,1728669048266,-509.35,0.00027397,2]
[340134049,1728669048275,-259.47,0.00027397,2]
[340134050,1728669048285,-500.0,0.00027397,2]
[340134051,1728669048294,-537.37841801,0.00027397,2]
[340134052,1728669048304,-849.69,0.00027397,2]
[340134053,1728669048313,-500.0,0.00027397,2]
[340134054,1728669048323,-464.91001305,0.00027397,2]
[340134055,1728669048332,-500.0,0.00027397,2]
[340134056,1728669048341,-438.37245375,0.00027397,2]
[340134057,1728669048350,-500.0,0.00027397,2]
[340134058,1728669048360,-500.0,0.00027397,2]
[340134059,1728669048369,-500.0,0.00027397,2]
[340134060,1728669048378,-178.43437725,0.00027397,2]
[340134061,1728669048387,-500.0,0.00027397,2]
[340134062,1728669048397,-929.15,0.00027397,2]
[340134063,1728669048406,-180.83363045,0.00027397,2]
[340134064,1728669048416,-521.41539212,0.00027397,2]
[340134065,1728669048425,-234.99020589,0.00027397,2]
[340134066,1728669048434,-512.72417459,0.00027397,2]
[340134067,1728669048444,-169.36961364,0.00027397,2]
[340134068,1728669048453,-861.93,0.00027397,2]
[340134069,1728669048462,-500.0,0.00027397,2]
[340134070,1728669048471,-574.90507254,0.00027397,2]
[340134071,1728669048480,-552.85727117,0.00027397,2]
[340134072,1728669048489,-500.0,0.00027397,2]
[340134073,1728669048498,-528.60941759,0.00027397,2]
[340134074,1728669048508,-500.0,0.00027397,2]
[340134075,1728669048517,-500.0,0.00027397,2]
[340134076,1728669048526,-500.0,0.00027397,2]
[340134077,1728669048536,-500.0,0.00027397,2]
[340134078,1728669048545,-500.0,0.00027397,2]
[340134079,1728669048554,-500.0,0.00027397,2]
[340134080,1728669048564,-520.76881593,0.00027397,2]
[340134081,1728669048574,-188.80940314,0.00027397,2]
[340134082,1728669048583,-180.892139,0.00027397,7]
[340134083,1728669048591,-500.0,0.00027397,2]
[340134084,1728669048600,-508.88573487,0.00027397,2]
[340134085,1728669048610,-151.0,0.00027397,7]
[340134086,1728669048619,-514.34747785,0.00027397,2]
[340134087,1728669048628,-500.0,0.00027397,2]
[340134088,1728669048637,-180.892139,0.00027397,7]
[340134089,1728669048646,-536.01821326,0.00027397,2]
[340134090,1728669048655,-500.0,0.00027397,2]
[340134091,1728669048664,-500.0,0.00027397,2]
[340134092,1728669048673,-316.97080347,0.00027397,2]
[340134093,1728669048683,-670.31,0.00027397,2]
[340134094,1728669048694,-692.96,0.00027397,2]
[340134095,1728669048703,-500.0,0.00027397,2]
[340134096,1728669048712,-561.92966718,0.00027397,2]
[340134097,1728669048722,-500.0,0.00027397,2]
[340134098,1728669048731,-524.20642181,0.00027397,2]
[340134099,1728669048741,-506.25271054,0.00027397,2]
[340134100,1728669048750,-519.77918491,0.00027397,2]
[340134101,1728669048760,-500.0,0.00027397,2]
[340134102,1728669048769,-500.0,0.00027397,2]
[340134103,1728669048779,-500.0,0.00027397,2]
[340134104,1728669048788,-500.0,0.00027397,2]
[340134105,1728669048798,-215.95649601,0.00027397,2]
[340134106,1728669048807,-528.12,0.00027397,2]
[340134107,1728669048817,-500.0,0.00027397,2]
[340134108,1728669048827,-500.0,0.00027397,2]
[340134109,1728669048836,-529.80633146,0.00027397,2]
[340134110,1728669048846,-518.32513209,0.00027397,2]
[340134111,1728669048855,-554.9529524,0.00027397,2]
[340134112,1728669048864,-500.0,0.00027397,2]
[340134113,1728669048874,-500.0,0.00027397,2]
[340134114,1728669048883,-192.30988773,0.00027397,2]
[340134115,1728669048893,-164.90240796,0.00027397,2]
[340134116,1728669048903,-500.0,0.00027397,2]
[340134117,1728669048912,-500.0,0.00027397,2]
[340134118,1728669048922,-175.66536902,0.00027397,2]
[340134119,1728669048932,-607.3137915,0.00027397,2]
[340134120,1728669048941,-394.871888,0.00027397,7]
[340134121,1728669048951,-539.94,0.00027397,2]
[340134122,1728669048960,-500.0,0.00027397,2]
[340134123,1728669048972,-500.0,0.00027397,2]
[340134124,1728669048981,-394.871888,0.00027397,7]
[340134125,1728669048991,-507.71712399,0.00027397,2]
[340134126,1728669048999,-568.04,0.00027397,2]
[340134127,1728669049009,-279.44999967,0.00027397,2]
[340134128,1728669049018,-236.386338,0.00027397,7]
[340134129,1728669049028,-173.10547287,0.00027397,2]
[340134130,1728669049038,-500.0,0.00027397,2]
[340134131,1728669049047,-500.0,0.00027397,2]
[340134132,1728669049058,-175.64716353,0.00027397,2]
[340134133,1728669049067,-500.0,0.00027397,2]
[340134134,1728669049077,-236.386338,0.00027397,7]
[340134135,1728669049087,-500.0,0.00027397,2]
[340134136,1728669049096,-156.360367,0.00027397,7]
[340134137,1728669049106,-3905.76,0.00027397,2]
[340134138,1728669049115,-500.0,0.00027397,2]
[340134139,1728669049124,-2044.103329,0.00027397,7]
[340134140,1728669049133,-1317.24,0.00027397,2]
[340134141,1728669049142,-542.99487436,0.00027397,2]
[340134142,1728669049151,-156.360367,0.00027397,7]
[340134143,1728669049161,-549.46980765,0.00027397,2]
[340134144,1728669049170,-500.0,0.00027397,2]
[340134145,1728669049180,-2044.103329,0.00027397,7]
[340134146,1728669049189,-151.0,0.00027397,7]
[340134147,1728669049205,-500.0,0.00027397,2]
[340134148,1728669049215,-500.0,0.00027397,2]
[340134149,1728669049224,-1136.8,0.00027397,2]
[340134150,1728669049234,-500.0,0.00027397,2]
[340134151,1728669049243,-259.08762022,0.00027397,2]
[340134152,1728669049252,-500.0,0.00027397,2]
[340134153,1728669049261,-500.0,0.00027397,2]
[340134154,1728669049271,-500.0,0.00027397,2]
[340134155,1728669049280,-500.0,0.00027397,2]
[340134156,1728669049289,-500.0,0.00027397,2]
[340134157,1728669049300,-500.0,0.00027397,2]
[340134158,1728669049310,-554.66204081,0.00027397,2]
[340134159,1728669049319,-500.0,0.00027397,2]
[340134160,1728669049327,-875.32,0.00027397,2]
[340134161,1728669049336,-589.99133937,0.00027397,2]
[340134162,1728669049346,-291.1478478,0.00027397,2]
[340134163,1728669049355,-500.0,0.00027397,2]
[340134164,1728669049364,-500.0,0.00027397,2]
[340134165,1728669049374,-500.0,0.00027397,2]
[340134166,1728669049383,-589.76312478,0.00027397,2]
[340134167,1728669049392,-150.26625627,0.00027397,2]
[340134168,1728669049401,-216.91594452,0.00027397,2]
[340134169,1728669049411,-500.0,0.00027397,2]
[340134170,1728669049420,-505.22,0.00027397,2]
[340134171,1728669049430,-500.0,0.00027397,2]
[340134172,1728669049440,-635.32,0.00027397,2]
[340134173,1728669049452,-541.27031749,0.00027397,2]
[340134174,1728669049462,-540.534769,0.00027397,2]
[340134176,1728669049471,-158.82992271,0.00027397,2]
[340134177,1728669049481,-500.0,0.00027397,2]
[340134178,1728669049490,-832.23,0.00027397,2]
[340134179,1728669049500,-506.41,0.00027397,2]
[340134180,1728669049510,-500.0,0.00027397,2]
[340134181,1728669049519,-555.30305501,0.00027397,2]
[340134182,1728669049529,-500.0,0.00027397,2]
[340134183,1728669049538,-505.50945499,0.00027397,2]
[340134184,1728669049547,-550.32088293,0.00027397,2]
[340134185,1728669049556,-2919.17,0.00027397,2]
[340134186,1728669049566,-500.0,0.00027397,2]
[340134187,1728669049575,-500.0,0.00027397,2]
[340134188,1728669049585,-658.07,0.00027397,2]
[340134189,1728669049594,-500.0,0.00027397,2]
[340134190,1728669049602,-500.0,0.00027397,2]
[340134191,1728669049736,-500.0,0.00027397,2]
[340134192,1728669049747,-500.0,0.00027397,2]
[340134193,1728669049758,-500.0,0.00027397,2]
[340134194,1728669049768,-500.0,0.00027397,2]
[340134195,1728669049778,-500.0,0.00027397,2]
[340134196,1728669049787,-191.25191884,0.00027397,2]
[340134197,1728669049797,-291.38410382,0.00027397,2]
[340134198,1728669049806,-509.63,0.00027397,2]
[340134199,1728669049816,-770.38,0.00027397,2]
[340134200,1728669049825,-500.0,0.00027397,2]
[340134201,1728669049835,-160.53933438,0.00027397,2]
[340134202,1728669049844,-260.75632651,0.00027397,2]
[340134203,1728669049854,-500.0,0.00027397,2]
[340134204,1728669049863,-500.0,0.00027397,2]
[340134205,1728669049872,-500.0,0.00027397,2]
[340134206,1728669049882,-1328.18,0.00027397,2]
[340134207,1728669049891,-462.48,0.00027397,2]
[340134208,1728669049900,-151.0,0.00027397,7]
[340134209,1728669049910,-151.0,0.00027397,7]
[340134210,1728669049920,-151.0,0.00027397,7]
[340134211,1728669049930,-151.0,0.00027397,7]
[340134212,1728669049939,-151.0,0.00027397,7]
[340134213,1728669049950,-151.0,0.00027397,7]
[340134214,1728669049961,-151.0,0.00027397,7]
[340134215,1728669049974,-151.0,0.00027397,7]
[340134216,1728669049983,-151.0,0.00027397,7]
[340134217,1728669049993,-159.600757,0.00027397,7]
[340134218,1728669050002,-151.0,0.00027397,7]
[340134219,1728669050012,-151.0,0.00027397,7]
[340134220,1728669050021,-151.0,0.00027397,7]
[340134221,1728669050030,-151.0,0.00027397,7]
[340134222,1728669050040,-151.0,0.00027397,7]
[340134223,1728669050049,-151.0,0.00027397,7]
[340134224,1728669050059,-151.0,0.00027397,7]
[340134225,1728669050069,-151.0,0.00027397,7]
[340134226,1728669050079,-151.0,0.00027397,7]
[340134227,1728669050088,-151.0,0.00027397,7]
[340134228,1728669050097,-152.254145,0.00027397,7]
[340134229,1728669050107,-159.02849535,0.000274,15]
[340134230,1728669050116,-190.54540877,0.000275,2]
[340134231,1728669050125,-13347.52020694,0.000275,2]
[340134232,1728669050135,-150.0,0.00027513,7]
[340134233,1728669050144,-150.0,0.00027631,7]
[340134234,1728669050154,-150.0,0.00027631,7]
[340134235,1728669050163,-150.0,0.00027754,7]
[340134236,1728669050173,-156.02,0.00027763,2]
[340134237,1728669050182,-306.2,0.0002786,2]
[340134238,1728669050191,-1613.68454525,0.00027886,2]
[340134239,1728669050202,-3000.0,0.000279,2]
[340134240,1728669050211,-150.0,0.00027949,7]
[340134241,1728669050221,-3362.09675413,0.00028,2]
[340134242,1728669050231,-150.0,0.00028,120]
[340134243,1728669050240,-3199.33,0.00028,10]
[340134244,1728669050249,-1000.0,0.00028,2]
[340134245,1728669050259,-1000.0,0.00028,2]
[340134246,1728669050269,-150.0,0.00028107,7]
[340134247,1728669050278,-2092.3331671,0.000282,2]
[340134248,1728669050288,-162.5043638,0.000282,2]
[340134249,1728669050297,-3271.62,0.00028219,2]
[340134250,1728669050306,-500.0,0.00028219,2]
[340134251,1728669050315,-516.62677333,0.00028219,2]
[340134252,1728669050325,-500.0,0.00028219,2]
[340134253,1728669050334,-513.99270399,0.00028219,2]
[340134254,1728669050344,-500.0,0.00028219,2]
[340134255,1728669050353,-500.0,0.00028219,2]
[340134256,1728669050362,-623.48,0.00028219,2]
[340134257,1728669050371,-500.0,0.00028219,2]
[340134258,1728669050380,-527.84344869,0.00028219,30]
[340134259,1728669050390,-500.0,0.00028219,2]
[340134260,1728669050399,-500.0,0.00028219,2]
[340134261,1728669050408,-1044.31,0.00028219,2]
[340134262,1728669050417,-500.0,0.00028219,2]
[340134263,1728669050427,-608.64,0.00028219,2]
[340134264,1728669050436,-500.0,0.00028219,2]
[340134265,1728669050447,-150.94153968,0.00028219,2]
[340134266,1728669050456,-500.0,0.00028219,2]
[340134267,1728669050466,-500.0,0.00028219,2]
[340134268,1728669050475,-500.0,0.00028219,2]
[340134269,1728669050484,-542.26,0.00028219,2]
[340134270,1728669050494,-151.0,0.00028219,7]
[340134271,1728669050503,-500.0,0.00028219,2]
[340134272,1728669050512,-623.2,0.00028219,2]
[340134273,1728669050522,-500.0,0.00028219,2]
[340134274,1728669050531,-500.0,0.00028219,2]
[340134275,1728669050540,-638.45,0.00028219,2]
[340134276,1728669050549,-500.0,0.00028219,2]